Cogmind - Beta 15 @@@ ROGUE MODE // 2025.09.16 @ 11:51:44 Player: GermanMO Result: Destroyed by H-55 Commando with Gauss Rifle Performance ------------- Evolutions (3) 1500 Regions Visited (5) 1000 Robots Destroyed (25) 125 Value Destroyed (1069) 1069 Prototype IDs (1) 20 Alien Tech Used (0) 0 Bonus (142) 142 TOTAL SCORE: 3856 Bonus ------- Pacifist 200 Friendly Fire -58 Cogmind --------- Core Integrity 0/700 Matter 78/300 Energy 67/100 System Corruption 4% Temperature Cool (1) Movement Walking (260) Ox2 Location -7/Factory Parts ------- > --- POWER (2) -------- (None) > --- PROPULSION (5) --- Aluminum Leg > --- UTILITY (4) ------ Structural Scanner Backup Plating I Improved Light Armor Plating Improved Medium Armor Plating > --- WEAPON (2) ------- Flak Gun Gauss Cannon > --- INVENTORY (5) ---- Terrain Scan Processor Peak State ------------ > --- POWER ------------ Ion Engine Light Ion Engine > --- PROPULSION ------- Aluminum Leg Aluminum Leg Carbon-fiber Leg Carbon-fiber Leg > --- UTILITY ---------- Weight Redist. System Advanced Visual Processing Unit Targeting Computer Advanced Targeting Computer > --- WEAPON ----------- Pulse Rifle Minigun > --- INVENTORY -------- Structural Scanner Terrain Scan Processor High-powered Shotgun Mini Grenade Launcher [Rating: 25] Favorites ----------- Power Light Ion Engine Engine Light Ion Engine Power Core Light Nuclear Core Propulsion Flight Unit Treads Light Treads Leg Aluminum Leg Flight Unit Flight Unit Utility Weight Redist. System Device Weight Redist. System Processor Advanced Visual Processing Unit Protection Improved Medium Armor Plating Weapon Light Assault Rifle Energy Gun Pulse Rifle Energy Cannon Improved EM Pulse Cannon Ballistic Gun Light Assault Rifle Ballistic Cannon Gauss Cannon Launcher Mini Grenade Launcher Build | -11 -10 -9 -9 -8 -7 ------- Run | Yrd Mat Mat Sto Mat Fac Slots Evolved 6 | . . 2 . 2 2 Power 1 | . . 1 . . . Propulsion 3 | . . 1 . 1 1 Utility 2 | . . . . 1 1 Weapon . | . . . . . . Parts Attached 42 | . 1 7 3 14 17 Power 9 | . . 2 . 4 3 Engine 6 | . . 2 . 3 1 Core 3 | . . . . 1 2 Reactor . | . . . . . . Propulsion 13 | . . 2 3 5 3 Treads 3 | . . 2 . . 1 Leg 6 | . . . . 4 2 Wheel . | . . . . . . Hover . | . . . . . . Flight 4 | . . . 3 1 . Utility 10 | . 1 1 . 3 5 Device 3 | . 1 1 . . 1 Storage . | . . . . . . Processor 4 | . . . . 3 1 Hackware . | . . . . . . Protection 3 | . . . . . 3 Artifact . | . . . . . . Weapon 10 | . . 2 . 2 6 Energy Gun 2 | . . . . 1 1 Energy Cannon 1 | . . . . . 1 Ballistic Gun 5 | . . 2 . 1 2 Ballistic Cannon 1 | . . . . . 1 Launcher 1 | . . . . . 1 Special Weapon . | . . . . . . Impact Weapon . | . . . . . . Slashing Weapon . | . . . . . . Piercing Weapon . | . . . . . . Special Melee Weapon . | . . . . . . Unidentified Prototypes 1 | . . . . . 1 Corrupted Parts 1 | . . . . . 1 System Corruption 3 | . . . . . 3 Parts Lost 29 | . . 1 1 9 18 Power 8 | . . 1 1 2 4 Propulsion 10 | . . . . 4 6 Utility 3 | . . . . 1 2 Weapon 8 | . . . . 2 6 Highest Loss Streak 9 | . . 1 1 8 9 To Critical Strikes . | . . . . . . Average Backups 3 | 2 5 2 2 3 4 Power . | . 1 . . . . Propulsion 1 | 1 2 1 1 . 1 Utility 1 | . . . . 1 2 Weapon . | . 2 . . . . Tool/Special . | . . . . . . Unused Backups 1 | . . . . . 1 Power . | . . . . . . Propulsion . | . . . . . . Utility 1 | . . . . . 1 Weapon . | . . . . . . Tool/Special . | . . . . . . Average Slot Usage (%) 56 | . 10 60 81 82 42 Engine 6 | . . 12 9 9 3 Core 1 | . . . . 3 . Treads 2 | . . 14 6 . . Leg 7 | . . . . 13 7 Flight 6 | . . . 23 16 . Device 8 | . 10 19 20 13 . Processor 8 | . . . . 10 12 Protection 2 | . . . . . 4 Energy Gun 2 | . . . . 5 2 Ballistic Gun 7 | . . 13 22 10 2 Ballistic Cannon 1 | . . . . . 2 Peak Build Rating 25 | . 1 9 9 23 25 Average Rating 12 | . . 6 8 16 14 On Entrance 6 | . . 1 8 8 23 Naked Turns 18 | . 18 . . . . Heaviest Build 23 | . 1 12 7 14 23 Greatest Support 56 | 3 3 40 40 56 56 Greatest Overweight (x) 5 | . . . . 2 5 Average Overweight (x) . | . . . . . 1 Largest Inventory Capacity 5 | 5 5 5 5 5 5 Average Capacity 5 | 5 5 5 5 5 5 Most Carried 5 | 5 5 5 5 5 5 Average Carried 3 | 3 5 2 2 3 4 Final Capacity 5 | 5 5 5 5 5 5 Final Carried 5 | 5 5 4 2 5 1 Class Distribution -------------------- 74% | Mutant 19% | Scavenger-Mutant 6% | Sprinter Dominant Class ---------------- Mutant | -10/Materials Mutant | -9/Materials Mutant | -9/Storage Mutant | -8/Materials Mutant | -7/Factory Resources | -11 -10 -9 -9 -8 -7 ----------- Run | Yrd Mat Mat Sto Mat Fac Matter Collected 712 | . . 82 84 336 210 Remotely . | . . . . . . Salvage Created 901 | . . 82 . 334 485 Parts 46 | . . 4 . 14 28 Haulers Intercepted 2 | . . . . 2 . Recyclers Shooed 1 | . . . . . 1 Parts Field Recycled . | . . . . . . Retrieved Matter . | . . . . . . Parts Self-Destructed . | . . . . . . Prevented . | . . . . . . Kills | -11 -10 -9 -9 -8 -7 ------- Run | Yrd Mat Mat Sto Mat Fac Combat Hostiles Destroyed 23 | . . 2 . 6 15 Guns 15 | . . 2 . 6 7 Cannons 3 | . . . . . 3 AOE 5 | . . . . . 5 Classes Destroyed 6 | . . 1 . 4 1 Hauler 2 | . . . . 2 . Swarmer 8 | . . . . 1 7 Grunt 10 | . . 2 . 3 5 Sentry 2 | . . . . 1 1 Hunter 2 | . . . . 1 1 Programmer 1 | . . . . . 1 Best Kill Streak 7 | . . 1 . 4 7 Combat Bots Only 7 | . . 1 . 4 7 Max Kills in Single Turn 3 | . . 1 . 1 3 Gunslinging . | . . . . . . Exploded 3 | . . . . . 3 Melee . | . . . . . . Uniques/NPCs Destroyed . | . . . . . . Combat | -11 -10 -9 -9 -8 -7 -------- Run | Yrd Mat Mat Sto Mat Fac Hostile Shots Fired 376 | . . 33 21 50 272 Missed 131 | . . 10 12 14 95 Hits 245 | . . 23 9 36 177 Projectile 245 | . . 23 9 36 177 Critical Strikes 6 | . . . . 2 4 Damage Taken 3422 | . . 308 112 581 2421 Core 886 | . . 28 52 104 702 Absorbed by Shields . | . . . . . . Core Remaining (%) 90 | 100 100 . 80 81 . Volleys Fired 132 | . . 11 8 37 76 Largest 2 | . . 2 2 2 2 Hottest 88 | . . 40 40 88 88 Shots Fired 192 | . . 22 16 58 96 Gun 168 | . . 22 16 58 72 Cannon 22 | . . . . . 22 Launcher 2 | . . . . . 2 Special . | . . . . . . Kinetic 125 | . . 22 16 26 61 Thermal 59 | . . . . 32 27 Explosive 2 | . . . . . 2 Electromagnetic 6 | . . . . . 6 Robot Hit Streak 18 | . . 6 6 18 12 Robot Miss Streak 4 | . . 1 4 3 4 Penetration Max . | . . . . . . Secondary Targets 1 | . . . . 1 . Max Gunslinging Chain 1 | . . . . 1 . Shots Hit Robots 130 | . . 16 6 45 63 Core Hits 63 | . . 5 1 18 39 Critical Kills . | . . . . . . Critical Parts Destroyed 1 | . . 1 . . . Critical Strikes 7 | . . 1 . 4 2 Burn 5 | . . . . 4 1 Destroy 1 | . . 1 . . . Blast 1 | . . . . . 1 Melee Attacks . | . . . . . . Impact . | . . . . . . Slashing . | . . . . . . Piercing . | . . . . . . Sneak Attacks . | . . . . . . Combat Hostiles . | . . . . . . Follow-up Attacks . | . . . . . . Damage Inflicted 2535 | . . 161 60 647 1667 Guns 1816 | . . 161 60 647 948 Cannons 326 | . . . . . 326 Explosions 357 | . . . . . 357 Melee . | . . . . . . Ramming 36 | . . . . . 36 Kinetic 1329 | . . 161 60 190 918 Thermal 752 | . . . . 457 295 Explosive 277 | . . . . . 277 Electromagnetic 141 | . . . . . 141 Impact . | . . . . . . Slashing . | . . . . . . Piercing . | . . . . . . Highest Corruption 4 | . . . . . 4 Average Corruption 3 | . . . . . 3 Corruption Purged . | . . . . . . Corruption Blocked . | . . . . . . Effects 4 | . . . . . 4 Matter Fused 2 | . . . . . 2 Heat Flow Errors 1 | . . . . . 1 Data Loss (minor) 1 | . . . . . 1 Overload Shots . | . . . . . . Overflow Damage 16 | . . . . . 16 Projectiles . | . . . . . . Explosions 16 | . . . . . 16 Melee . | . . . . . . Knockbacks 1 | . . . . . 1 Impact . | . . . . . . Kinetic 1 | . . . . . 1 Secondary . | . . . . . . Self-Inflicted Damage 63 | . . . . . 63 Shots 2 | . . . . . 2 Rammed 12 | . . . . . 12 Targets Rammed 14 | . . . . . 14 Kicked 2 | . . . . . 2 Crushed . | . . . . . . Highest Temperature 354 | . . 14 4 354 257 Average Temperature 92 | . . 5 3 110 82 Received Heat Transfer 831 | . . 93 36 261 441 Effects 5 | . . . . 5 . Interference 3 | . . . . 3 . Matter Decay 1 | . . . . 1 . Damage (minor) 1 | . . . . 1 . Siege Activations . | . . . . . . Martial Activations . | . . . . . . Shielding Activations . | . . . . . . Robots Disrupted . | . . . . . . Combat Hostiles . | . . . . . . Robots Corrupted . | . . . . . . Combat Hostiles . | . . . . . . Parts Fried 1 | . . . . . 1 Impact Corruptions . | . . . . . . Robots Melted . | . . . . . . Combat Hostiles . | . . . . . . Parts Melted 6 | . . . . 5 1 Heat Transferred 1998 | . . . . 1295 703 Parts Sabotaged . | . . . . . . Parts Stolen . | . . . . . . Parts Stripped . | . . . . . . Power Chain Reactions 2 | . . . . . 2 Alert | -11 -10 -9 -9 -8 -7 ------- Run | Yrd Mat Mat Sto Mat Fac Maximum Alert Level 1 | . . . . . 1 Low Security (%) 72 | 100 100 100 100 100 44 Level 1 27 | . . . . . 55 Level 2 . | . . . . . . Level 3 . | . . . . . . Level 4 . | . . . . . . Level 5 . | . . . . . . High Security . | . . . . . . Max Security . | . . . . . . Peak Influence 381 | . . 45 160 66 381 Initial 66 | . . . . 66 6 Average 119 | . . 13 45 36 209 Influence Increases 1208 | . . 55 197 195 761 Destroy 0b10 Robot/C 460 | . . 40 . 120 300 Destroy 0b10 Robot/NC 10 | . . . . 10 . Destroy Leader 94 | . . . . 34 60 Successful Hack 2 | . . . 2 . . Disable Machine 225 | . . . . . 225 Destroy Structure 57 | . . . . 1 56 Partial Spotted 15 | . . . 15 . . Lose Combat Pursuer 345 | . . 15 180 30 120 Influence Decreases 911 | . . 55 40 337 479 Entered New Map 100 | . . . . 91 9 Time Decay 561 | . . 45 30 186 300 Lost Part 250 | . . 10 10 60 170 Squads Dispatched 6 | . . 1 2 2 1 Investigation 1 | . . . 1 . . Extermination 1 | . . . . . 1 Reinforcement 4 | . . 1 1 2 . Assault . | . . . . . . Garrison . | . . . . . . Intercept . | . . . . . . Searches Triggered . | . . . . . . Construction Impeded . | . . . . . . Haulers Reinforced . | . . . . . . Active Scanning Responses . | . . . . . . Cargo Convoy Interrupts 1 | . . . . . 1 Stealth | -11 -10 -9 -9 -8 -7 --------- Run | Yrd Mat Mat Sto Mat Fac Distress Signals 5 | . . . 3 2 . Communications Jammed . | . . . . . . Distress Signals . | . . . . . . Times Spotted 78 | . 1 10 19 16 32 Peak Tracking Total 13 | . 1 5 13 6 9 Tactical Retreats 10 | . . 1 4 1 4 Traps | -11 -10 -9 -9 -8 -7 ------- Run | Yrd Mat Mat Sto Mat Fac Traps Triggered 3 | . . . 1 1 1 Indirectly 1 | . . . . . 1 Trap Hack Attempts . | . . . . . . Triggered . | . . . . . . Disarmed . | . . . . . . Reprogrammed . | . . . . . . Reused . | . . . . . . Traps Extracted . | . . . . . . Installed . | . . . . . . Triggered . | . . . . . . Machines | -11 -10 -9 -9 -8 -7 ---------- Run | Yrd Mat Mat Sto Mat Fac Machines Disabled 15 | . . . . . 15 Max in Single Turn 5 | . . . . . 5 Machines Repaired . | . . . . . . Machines Dismantled . | . . . . . . Machines Sabotaged . | . . . . . . Overloaded Fab Kills . | . . . . . . Hacking | -11 -10 -9 -9 -8 -7 --------- Run | Yrd Mat Mat Sto Mat Fac Machines Accessed 2 | . . . 2 . . Terminals 2 | . . . 2 . . Fabricators . | . . . . . . Repair Stations . | . . . . . . Recycling Units . | . . . . . . Scanalyzers . | . . . . . . Garrison Access . | . . . . . . Total Hacks 5 | . . . 5 . . Successful 3 | . . . 3 . . Failed 1 | . . . 1 . . Catastrophic . | . . . . . . Database Lockouts 1 | . . . 1 . . Manual . | . . . . . . Terminals 5 | . . . 5 . . Fabricators . | . . . . . . Repair Stations . | . . . . . . Recycling Units . | . . . . . . Scanalyzers . | . . . . . . Garrison Access . | . . . . . . Terminal Hacks 3 | . . . 3 . . Record 2 | . . . 2 . . Open Door 1 | . . . 1 . . Fabricator Hacks . | . . . . . . Repair Station Hacks . | . . . . . . Recycling Unit Hacks . | . . . . . . Scanalyzer . | . . . . . . Garrison Access Hacks . | . . . . . . Unauthorized Hacks . | . . . . . . Terminals . | . . . . . . Fabricators . | . . . . . . Repair Stations . | . . . . . . Recycling Units . | . . . . . . Scanalyzers . | . . . . . . Garrison Access . | . . . . . . Data Cores Recovered . | . . . . . . Used . | . . . . . . Hacking Detections 1 | . . . 1 . . Full Trace Events 1 | . . . 1 . . Feedback Events . | . . . . . . Feedback Blocked . | . . . . . . Robot Schematics Acquired . | . . . . . . Robots Built . | . . . . . . Authchips . | . . . . . . Time . | . . . . . . Total Robot Build Rating . | . . . . . . Part Schematics Acquired . | . . . . . . Parts Built . | . . . . . . Authchips . | . . . . . . Time . | . . . . . . Total Part Build Rating . | . . . . . . Parts Repaired . | . . . . . . Time . | . . . . . . Parts Recycled . | . . . . . . Recycled Matter . | . . . . . . Retrieved Matter . | . . . . . . Retrieved Components . | . . . . . . Parts Scanalyzed . | . . . . . . Part Schematics Acquired . | . . . . . . Parts Damaged . | . . . . . . Bothacking | -11 -10 -9 -9 -8 -7 ------------ Run | Yrd Mat Mat Sto Mat Fac Used RIF Installer . | . . . . . . Robots Hacked . | . . . . . . Non-combat . | . . . . . . Combat . | . . . . . . Robot Hacks Applied . | . . . . . . Relay Couplers Released . | . . . . . . Fabnet Peak Effective % . | . . . . . . Robots Rewired . | . . . . . . Allies Hacked . | . . . . . . Hacks Repelled . | . . . . . . Allies | -11 -10 -9 -9 -8 -7 -------- Run | Yrd Mat Mat Sto Mat Fac Total Allies . | . . . . . . Largest Group . | . . . . . . Highest-Rated Group . | . . . . . . Highest-Rated Ally . | . . . . . . Total Orders . | . . . . . . Ally Attacks . | . . . . . . Total Damage . | . . . . . . Kills . | . . . . . . Allies Corrupted . | . . . . . . Allies Melted . | . . . . . . Intel | -11 -10 -9 -9 -8 -7 ------- Run | Yrd Mat Mat Sto Mat Fac Active Infowar (turns) 1139 | . 48 46 87 254 704 Optics 836 | . . . . 137 699 Structural 21 | . . . . . 21 Seismic 298 | . 48 46 87 117 . Robot Analysis Total . | . . . . . . Derelict Logs Recovered . | . . . . . . Drone Launches . | . . . . . . Drone Recoveries . | . . . . . . Exploration | -11 -10 -9 -9 -8 -7 ------------- Run | Yrd Mat Mat Sto Mat Fac Turns Passed 1517 | 18 66 160 133 384 756 Spaces Moved 1313 | 26 90 126 236 479 356 Core 458 | 26 90 84 . . 258 Treads 58 | . . 42 16 . . Legs 197 | . . . . 99 98 Wheels . | . . . . . . Hover . | . . . . . . Flight 600 | . . . 220 380 . Fastest Speed 31 | 50 50 50 34 31 50 Average Speed 73 | 50 50 86 42 50 126 Slowest Speed 300 | 50 50 160 160 200 300 Overloaded Moves . | . . . . . . Propulsion Burnouts . | . . . . . . Robots Hopped 3 | . . . 2 1 . Potential Cave-ins . | . . . . . . Cave-ins Triggered . | . . . . . . Exploration Rate (%) 22 | 4 20 13 48 38 11 Regions Visited 5 Branch Regions 1 Pre-discovered Areas . | . . . . . . Known Exits Taken . | . . . . . . Unknown Exits Taken 5 | 1 1 1 1 1 . Scrap Searched . | . . . . . . Spaces Dug . | . . . . . . Terrain Destroyed 54 | . . . . . 54 Melee . | . . . . . . Projectile 6 | . . . . . 6 AOE 48 | . . . . . 48 Terrain Rammed . | . . . . . . Walls Destroyed . | . . . . . . Machines Disabled . | . . . . . . Actions | -11 -10 -9 -9 -8 -7 --------- Run | Yrd Mat Mat Sto Mat Fac Total 1685 | 30 109 157 252 565 572 Wait 149 | . 19 9 2 19 100 Move 1302 | 25 89 125 231 476 356 Hop 3 | . . . 2 1 . Pick Up 36 | 5 . 5 2 17 7 Fast Attach 9 | . 1 1 1 . 6 Attach 34 | . . 6 4 14 10 Detach . | . . . . . . Swap 1 | . . . . . 1 Drop 5 | . . . 2 1 2 Fire 132 | . . 11 8 37 76 Melee . | . . . . . . Ram 12 | . . . . . 12 Kick 2 | . . . . . 2 Crush . | . . . . . . Escape Stasis . | . . . . . . Rewire . | . . . . . . Trap . | . . . . . . Miscellaneous . | . . . . . . Route ------- -11/Scrapyard -10/Materials -9/Materials -9/Storage -8/Materials -7/Factory History --------- Turn | Location | Event 6 | -11/Scrapyard | Discovered new exit (range 15) 19 | -11/Scrapyard | Entered Materials 81 | -10/Materials | Discovered new exit (range 6) 85 | -10/Materials | Entered another Materials area 85 | -9/Materials | Evolved 2 slots: Power x1, Propulsion x1 95 | -9/Materials | Discovered new exit (range 14) 245 | -9/Materials | Entered Storage 306 | -9/Storage | Central database locked down 318 | -9/Storage | Build established: Mutant 370 | -9/Storage | Discovered new exit (range 16) 378 | -9/Storage | Entered Materials 378 | -8/Materials | Evolved 2 slots: Propulsion x1, Utility x1 605 | -8/Materials | Lost 8 parts (2p3n1u2w) 704 | -8/Materials | Discovered new exit (range 5) 762 | -8/Materials | Entered Factory 762 | -7/Factory | Evolved 2 slots: Propulsion x1, Utility x1 993 | -7/Factory | Lost 9 parts (3p4n2w) 1016 | -7/Factory | Core integrity fell below 50% 1020 | -7/Factory | Destroyed 7 combat bots 1444 | -7/Factory | Cargo convoy interrupted 1474 | -7/Factory | Core integrity fell below 20% 1485 | -7/Factory | Lost 3 allies 1518 | -7/Factory | Destroyed by H-55 Commando with Gauss Rifle Last Messages --------------- System corrupted: Heat flow error (+192). U-05 Engineer builds a Wall. Acquired Lgt. Treads. Slug penetrates Wall. Acquired Imp. Light Armor Plating. Slug penetrates Wall. X-67 Chaingunner Weapon Cycler blasted off. X-67 Chaingunner knocked back. Slug penetrates Wall. Slug penetrates X-67 Chaingunner. Wall collapses. Slug penetrates Wall. Terminal disabled. U-05 Engineer builds a Wall. U-05 Engineer builds a Door. Slug penetrates Wall. Discarded Adv. Visual Processing Unit. Penetrated by Slug. Lgt. Treads destroyed. Penetrated by Slug. Map ----- +----------------------------------------------------+ | ????????????????????#######??????????????????????? | | ??????????????#####?# ????? #???????????????? | | ??????????????# ?+ ???? #??######???????? | | ?????????????## #?# ! ???? #### ####????? | | ?????????????+ #?# ?? # = ###### | | ?????????????# #?# """ """ # % | | ?????????????# ### """ """ # ####### | | ?????????????# + """ """ # % ##?????? | | ????????????# ## # =**##?????? | | ???????????# ## """ """ # %* #?????? | | ????? #????# ## """ """ # #??????? | | ?? ??????+ ## """ """ # ! #??????? | | ????????# #? ?? # [!* #??????? | | ##+########### ####+#######+######+#########?? | | =%% #?? | | % % #?? | | " %%% # | | " u % + | | [= = h! # | | "" #####+######h#############+### #?? | | """ ## # % x ##?????? ?# #?# | | "F ## # hm! ##?????? ?# ? | | """ ## # x ""##?????? ?# | | ""*!%/| # !!! ""##?????? ?# | | ! =##[ # !!! T"##??????"" ?# | | =%* ##! # !! @% "##??????"" ?# | | =%=####+#### # ! "##??????"" ?# | | =!#?? # %# %% ##???????? ?# """ " | | # """" # ###### #####????????#?#|| """ " | | + """" # % # # ########??????????#|| """ " | | # """" # ###?######????????????# "?? " | | # """" # ##????####????????????# ??? | | # """" ########????????????????????? ???? | | # """" #######??????????????????????####???? | | #= ""?? #???????????????????????????????????? | | # ???????????????????????????????????????? | | # """??????????????????????????????????????? | | # """??????????????????????????????????????? | | " """??????????????????????????????????????? | | " """??????????????????????????????????????? | | " """??????????????????????????????????????? | | " """"?????????????????????????????????????? | | " """"?????????????????????????????????????? | | " ?????????????????????????????????????? | | "###????????????????????????????????????????? | | ! "#??????????????????????????????????????????? | | "#??????????????????????????????????????????? | | """"########?????????????????????????????????????? | | #?????????????????????????????????????? | | #?????????????????????????????????????? | +----------------------------------------------------+ Best States ------------- Heat Dissipation 34 Energy Generation 23 Energy Capacity 275 Matter Stores 300 Matter Capacity 300 Sight Range 20 Terrain Scan Density 10 Additional Mass Support 6 Armor Coverage 305 Evasion (%) 63 Targeting Accuracy 13 Recoil Reduction 2 Item Schematics ----------------- None Robot Schematics ------------------ None Fabricated ------------ Nothing Repaired ---------- Nothing Alien Tech Used ----------------- None Achievements -------------- None Challenges ------------ None Game ------ Seed CountertargetingActiveLegs Manual? 0 Play Time 00:30:33 Cumulative 17.1 hours Start 2025.09.14 @ 18:36:22 End 2025.09.16 @ 11:51:44 Sessions 4 Manual Loads 0 Difficulty Rogue Special Mode None Game No. 21 Rogue 3 Adventurer 0 Explorer 18 Win Type - Total 0 Types 0/0/0/0/0/0/0/0/0/0 Lore% 11 Gallery% 19 Achievement% 25 Wizard Run 0 Options --------- Layout 2 ASCII 0 Keyboard 0 Movement Mouse Keybinds 0 Fullscreen 2 Font 24/Smallcaps Map View 50x44 Zoom Use 0% Tactical HUD 0 Map Filters NONE Filters NONE Steam 1 RUN: 3cc46b04-6da5-452e-b042-73f469f36fc2